[Event "Titled Tuesday Blitz February 28 Late 2023"]
[White "Saveliev, Alexei"]
[Black "Leonte, Sebastian-Marian"]
[WhiteFideId "24128546"]
[BlackFideId "1268767"]
[WhiteElo "2271"]
[BlackElo "2258"]
[Result "1-0"]
[Round "01"]
[TimeControl "180+2"]
[Date "2023.02.28"]
[WhiteClock "0:01:07"]
[BlackClock "0:00:14"]

1. c4 {[%clk 0:03:00]}  e5 {[%clk 0:02:57]} 2. Nc3 {[%clk 0:03:01]}  Nf6 {[%clk 0:02:56]} 3. Nf3 {[%clk 0:03:01]}  Nc6 {[%clk 0:02:56]} 4. e3 {[%clk 0:03:01]}  Bb4 {[%clk 0:02:52]} 5. Qc2 {[%clk 0:03:01]}  Bxc3 {[%clk 0:02:52]} 6. Qxc3 {[%clk 0:03:02]}  Qe7 {[%clk 0:02:50]} 7. d4 {[%clk 0:03:02]}  exd4 {[%clk 0:02:30]} 8. Nxd4 {[%clk 0:03:03]}  Nxd4 {[%clk 0:02:30]} 9. Qxd4 {[%clk 0:03:03]}  O-O {[%clk 0:02:30]} 10. Be2 {[%clk 0:03:03]}  d5 {[%clk 0:02:04]} 11. O-O {[%clk 0:03:00]}  Be6 {[%clk 0:01:56]} 12. b3 {[%clk 0:02:59]}  c5 {[%clk 0:01:49]} 13. Qh4 {[%clk 0:02:58]}  dxc4 {[%clk 0:01:43]} 14. Bxc4 {[%clk 0:02:59]}  Bxc4 {[%clk 0:01:42]} 15. Qxc4 {[%clk 0:03:00]}  Rac8 {[%clk 0:01:34]} 16. Bb2 {[%clk 0:02:59]}  Ne4 {[%clk 0:01:18]} 17. Rad1 {[%clk 0:02:54]}  Rfd8 {[%clk 0:01:10]} 18. f3 {[%clk 0:02:50]}  Nd6 {[%clk 0:00:37]} 19. Qc3 {[%clk 0:02:50]}  Nf5 {[%clk 0:00:37]} 20. e4 {[%clk 0:02:29]}  Nd4 {[%clk 0:00:35]} 21. Qe3 {[%clk 0:02:29]}  Ne6 {[%clk 0:00:26]} 22. Rd5 {[%clk 0:02:23]}  Rd7 {[%clk 0:00:22]} 23. Rfd1 {[%clk 0:02:19]}  Rcd8 {[%clk 0:00:22]} 24. g3 {[%clk 0:02:04]}  b6 {[%clk 0:00:22]} 25. Kg2 {[%clk 0:02:03]}  Nc7 {[%clk 0:00:21]} 26. Qc3 {[%clk 0:01:51]}  f6 {[%clk 0:00:19]} 27. R5d2 {[%clk 0:01:50]}  Rxd2+ {[%clk 0:00:18]} 28. Rxd2 {[%clk 0:01:51]}  Rxd2+ {[%clk 0:00:18]} 29. Qxd2 {[%clk 0:01:52]}  Ne6 {[%clk 0:00:18]} 30. Qd5 {[%clk 0:01:50]}  Kf7 {[%clk 0:00:18]} 31. e5 {[%clk 0:01:50]}  Qd8 {[%clk 0:00:18]} 32. Qb7+ {[%clk 0:01:46]}  Qc7 {[%clk 0:00:18]} 33. Qe4 {[%clk 0:01:43]}  fxe5 {[%clk 0:00:18]} 34. Bxe5 {[%clk 0:01:35]}  Qd7 {[%clk 0:00:17]} 35. Qf5+ {[%clk 0:01:26]}  Kg8 {[%clk 0:00:17]} 36. Bc3 {[%clk 0:01:23]}  Nf8 {[%clk 0:00:18]} 37. Qe4 {[%clk 0:01:20]}  Qe6 {[%clk 0:00:17]} 38. Qd3 {[%clk 0:01:18]}  Qd7 {[%clk 0:00:17]} 39. Qc4+ {[%clk 0:01:16]}  Qe6 {[%clk 0:00:18]} 40. Qd3 {[%clk 0:01:16]}  Qd7 {[%clk 0:00:18]} 41. Qe3 {[%clk 0:01:14]}  Qe6 {[%clk 0:00:18]} 42. Qd2 {[%clk 0:01:15]}  Qd7 {[%clk 0:00:18]} 43. Qf4 {[%clk 0:01:13]}  Qd3 {[%clk 0:00:16]} 44. Qe5 {[%clk 0:01:09]}  Qc2+ {[%clk 0:00:14]} 45. Kh3 {[%clk 0:01:09]}  Qg6 {[%clk 0:00:14]} 46. g4 {[%clk 0:01:08]}  Qe6 {[%clk 0:00:14]} 47. Qxg7# {[%clk 0:01:07]} 1-0


[Site "https://www.chess.com"]

[Event "Titled Tuesday Blitz February 28 Late 2023"]
[White "Djabri,Massinas"]
[Black "Klose, Eli"]
[WhiteFideId "7905726"]
[BlackFideId "16242955"]
[WhiteElo "2155"]
[BlackElo "2589"]
[Result "0-1"]
[Round "01"]
[TimeControl "180+2"]
[Date "2023.02.28"]
[WhiteClock "0:00:22"]
[BlackClock "0:00:11"]

1. d4 {[%clk 0:02:55]}  Nf6 {[%clk 0:02:59]} 2. c4 {[%clk 0:02:55]}  c5 {[%clk 0:02:59]} 3. d5 {[%clk 0:02:54]}  b5 {[%clk 0:02:52]} 4. cxb5 {[%clk 0:02:55]}  a6 {[%clk 0:02:47]} 5. b6 {[%clk 0:02:55]}  Qxb6 {[%clk 0:02:45]} 6. Nc3 {[%clk 0:02:56]}  d6 {[%clk 0:02:45]} 7. a4 {[%clk 0:02:56]}  g6 {[%clk 0:02:43]} 8. a5 {[%clk 0:02:55]}  Qb7 {[%clk 0:02:42]} 9. e4 {[%clk 0:02:54]}  Bg7 {[%clk 0:02:42]} 10. Bc4 {[%clk 0:02:53]}  O-O {[%clk 0:02:42]} 11. Nge2 {[%clk 0:02:46]}  Bd7 {[%clk 0:02:42]} 12. Ra3 {[%clk 0:02:38]}  Ne8 {[%clk 0:02:31]} 13. O-O {[%clk 0:02:32]}  Nc7 {[%clk 0:02:30]} 14. Rb3 {[%clk 0:02:32]}  Nb5 {[%clk 0:02:26]} 15. Qd3 {[%clk 0:02:30]}  Qc7 {[%clk 0:02:23]} 16. Bd2 {[%clk 0:02:19]}  Ra7 {[%clk 0:01:40]} 17. Nxb5 {[%clk 0:02:13]}  axb5 {[%clk 0:01:41]} 18. Bxb5 {[%clk 0:02:13]}  Bxb5 {[%clk 0:01:40]} 19. Rxb5 {[%clk 0:02:14]}  Nd7 {[%clk 0:01:39]} 20. Rc1 {[%clk 0:02:00]}  Ne5 {[%clk 0:01:24]} 21. Qa3 {[%clk 0:01:58]}  Qd7 {[%clk 0:01:15]} 22. Rb6 {[%clk 0:01:54]}  Qc7 {[%clk 0:00:50]} 23. Qb3 {[%clk 0:01:38]}  Qd7 {[%clk 0:00:46]} 24. f3 {[%clk 0:01:37]}  h5 {[%clk 0:00:41]} 25. Qb5 {[%clk 0:01:38]}  Qxb5 {[%clk 0:00:36]} 26. Rxb5 {[%clk 0:01:39]}  Nd3 {[%clk 0:00:36]} 27. Rb1 {[%clk 0:01:30]}  Raa8 {[%clk 0:00:35]} 28. Nc1 {[%clk 0:01:26]}  Ne5 {[%clk 0:00:30]} 29. b3 {[%clk 0:01:22]}  Rfb8 {[%clk 0:00:28]} 30. Rxb8+ {[%clk 0:01:21]}  Rxb8 {[%clk 0:00:28]} 31. b4 {[%clk 0:01:13]}  Nc4 {[%clk 0:00:29]} 32. Be1 {[%clk 0:01:11]}  Nxa5 {[%clk 0:00:24]} 33. Kf1 {[%clk 0:01:06]}  Nc4 {[%clk 0:00:19]} 34. Ke2 {[%clk 0:01:03]}  cxb4 {[%clk 0:00:14]} 35. Rxb4 {[%clk 0:01:03]}  Rxb4 {[%clk 0:00:13]} 36. Bxb4 {[%clk 0:01:03]}  Nb6 {[%clk 0:00:13]} 37. Nd3 {[%clk 0:01:04]}  Nd7 {[%clk 0:00:13]} 38. f4 {[%clk 0:01:02]}  Bd4 {[%clk 0:00:12]} 39. Be1 {[%clk 0:01:00]}  Nc5 {[%clk 0:00:10]} 40. Nxc5 {[%clk 0:00:57]}  Bxc5 {[%clk 0:00:11]} 41. Kf3 {[%clk 0:00:56]}  Kf8 {[%clk 0:00:11]} 42. g4 {[%clk 0:00:56]}  hxg4+ {[%clk 0:00:08]} 43. Kxg4 {[%clk 0:00:56]}  Kg7 {[%clk 0:00:09]} 44. f5 {[%clk 0:00:57]}  Kh7 {[%clk 0:00:08]} 45. h4 {[%clk 0:00:56]}  Kh6 {[%clk 0:00:07]} 46. Bd2+ {[%clk 0:00:55]}  Kh7 {[%clk 0:00:07]} 47. h5 {[%clk 0:00:56]}  gxh5+ {[%clk 0:00:05]} 48. Kxh5 {[%clk 0:00:57]}  Kg7 {[%clk 0:00:06]} 49. Bc3+ {[%clk 0:00:56]}  Kf8 {[%clk 0:00:06]} 50. Kg5 {[%clk 0:00:54]}  Be3+ {[%clk 0:00:06]} 51. Kg4 {[%clk 0:00:54]}  Bc5 {[%clk 0:00:07]} 52. f6 {[%clk 0:00:53]}  e6 {[%clk 0:00:07]} 53. Kh5 {[%clk 0:00:51]}  exd5 {[%clk 0:00:05]} 54. exd5 {[%clk 0:00:50]}  Ke8 {[%clk 0:00:06]} 55. Kh6 {[%clk 0:00:50]}  Bb6 {[%clk 0:00:06]} 56. Kg7 {[%clk 0:00:50]}  Bc5 {[%clk 0:00:07]} 57. Bd2 {[%clk 0:00:47]}  Ba3 {[%clk 0:00:07]} 58. Ba5 {[%clk 0:00:46]}  Bc5 {[%clk 0:00:07]} 59. Bc7 {[%clk 0:00:45]}  Ba3 {[%clk 0:00:07]} 60. Ba5 {[%clk 0:00:45]}  Bc5 {[%clk 0:00:08]} 61. Bd2 {[%clk 0:00:46]}  Ba3 {[%clk 0:00:08]} 62. Bh6 {[%clk 0:00:44]}  Bc5 {[%clk 0:00:08]} 63. Kh7 {[%clk 0:00:44]}  Bd4 {[%clk 0:00:08]} 64. Bg7 {[%clk 0:00:42]}  Be5 {[%clk 0:00:08]} 65. Kg8 {[%clk 0:00:38]}  Bd4 {[%clk 0:00:08]} 66. Bh8 {[%clk 0:00:37]}  Be5 {[%clk 0:00:08]} 67. Bg7 {[%clk 0:00:37]}  Bd4 {[%clk 0:00:09]} 68. Kh7 {[%clk 0:00:37]}  Be5 {[%clk 0:00:09]} 69. Kh6 {[%clk 0:00:37]}  Bd4 {[%clk 0:00:10]} 70. Kg5 {[%clk 0:00:38]}  Be5 {[%clk 0:00:10]} 71. Kf5 {[%clk 0:00:38]}  Kd7 {[%clk 0:00:10]} 72. Bf8 {[%clk 0:00:38]}  Kc7 {[%clk 0:00:10]} 73. Be7 {[%clk 0:00:32]}  Kb6 {[%clk 0:00:10]} 74. Kg5 {[%clk 0:00:31]}  Kc5 {[%clk 0:00:10]} 75. Kh6 {[%clk 0:00:32]}  Kxd5 {[%clk 0:00:10]} 76. Kg7 {[%clk 0:00:33]}  Ke6 {[%clk 0:00:11]} 77. Bd8 {[%clk 0:00:23]}  d5 {[%clk 0:00:11]} 78. Be7 {[%clk 0:00:22]}  d4 {[%clk 0:00:11]} 79. Kh6 {[%clk 0:00:21]}  d3 {[%clk 0:00:11]} 80. Bb4 {[%clk 0:00:22]}  Bf4+ {[%clk 0:00:11]} 81. Kg7 {[%clk 0:00:22]}  d2 {[%clk 0:00:11]} 0-1


[Site "https://www.chess.com"]

[Event "Titled Tuesday Blitz February 28 Late 2023"]
[White "Colas, Joshua"]
[Black "Escalante Ramirez, Rafael"]
[WhiteFideId "2044447"]
[BlackFideId "3900177"]
[WhiteElo "2347"]
[BlackElo "2251"]
[Result "1-0"]
[Round "01"]
[TimeControl "180+2"]
[Date "2023.02.28"]
[WhiteClock "0:00:28"]
[BlackClock "0:00:05"]

1. Nf3 {[%clk 0:01:41]}  Nf6 {[%clk 0:02:58]} 2. c4 {[%clk 0:01:41]}  e6 {[%clk 0:02:54]} 3. g3 {[%clk 0:01:41]}  b6 {[%clk 0:02:51]} 4. Bg2 {[%clk 0:01:40]}  Bb7 {[%clk 0:02:46]} 5. O-O {[%clk 0:01:29]}  c5 {[%clk 0:02:46]} 6. d4 {[%clk 0:01:27]}  cxd4 {[%clk 0:02:46]} 7. Qxd4 {[%clk 0:01:28]}  d6 {[%clk 0:02:45]} 8. Nc3 {[%clk 0:01:27]}  a6 {[%clk 0:02:43]} 9. b3 {[%clk 0:01:21]}  Nbd7 {[%clk 0:02:41]} 10. Rd1 {[%clk 0:01:19]}  Qc7 {[%clk 0:02:39]} 11. e4 {[%clk 0:01:12]}  Be7 {[%clk 0:02:38]} 12. Ba3 {[%clk 0:01:00]}  Nc5 {[%clk 0:02:32]} 13. e5 {[%clk 0:01:01]}  dxe5 {[%clk 0:02:23]} 14. Qxe5 {[%clk 0:00:58]}  Rc8 {[%clk 0:02:01]} 15. Qxc7 {[%clk 0:00:55]}  Rxc7 {[%clk 0:02:02]} 16. Ne5 {[%clk 0:00:56]}  Bxg2 {[%clk 0:01:58]} 17. Kxg2 {[%clk 0:00:57]}  O-O {[%clk 0:01:49]} 18. Rd4 {[%clk 0:00:40]}  Rd8 {[%clk 0:01:29]} 19. Rxd8+ {[%clk 0:00:36]}  Bxd8 {[%clk 0:01:29]} 20. Rd1 {[%clk 0:00:35]}  Be7 {[%clk 0:01:18]} 21. Bxc5 {[%clk 0:00:32]}  bxc5 {[%clk 0:00:17]} 22. f4 {[%clk 0:00:27]}  g6 {[%clk 0:00:17]} 23. Kf3 {[%clk 0:00:27]}  Kf8 {[%clk 0:00:16]} 24. Ne4 {[%clk 0:00:26]}  Nxe4 {[%clk 0:00:11]} 25. Kxe4 {[%clk 0:00:27]}  Ke8 {[%clk 0:00:11]} 26. g4 {[%clk 0:00:27]}  f6 {[%clk 0:00:09]} 27. Nf3 {[%clk 0:00:28]}  Kf7 {[%clk 0:00:06]} 28. f5 {[%clk 0:00:27]}  gxf5+ {[%clk 0:00:05]} 29. gxf5 {[%clk 0:00:28]} 1-0


[Site "https://www.chess.com"]

[Event "Titled Tuesday Blitz February 28 Late 2023"]
[White "Einarsson, Halldor Gretar"]
[Black "Karttunen, Mika"]
[WhiteFideId "2300150"]
[BlackFideId "502081"]
[WhiteElo "2126"]
[BlackElo "2396"]
[Result "1-0"]
[Round "01"]
[TimeControl "180+2"]
[Date "2023.02.28"]
[WhiteClock "0:00:12"]
[BlackClock "0:00:02"]

1. d4 {[%clk 0:03:00]}  Nf6 {[%clk 0:02:59]} 2. c4 {[%clk 0:03:00]}  e6 {[%clk 0:02:59]} 3. g3 {[%clk 0:02:59]}  d5 {[%clk 0:02:59]} 4. Nf3 {[%clk 0:02:59]}  Bb4+ {[%clk 0:02:58]} 5. Bd2 {[%clk 0:02:57]}  Bd6 {[%clk 0:02:56]} 6. Bg2 {[%clk 0:02:55]}  c6 {[%clk 0:02:53]} 7. O-O {[%clk 0:02:53]}  O-O {[%clk 0:02:52]} 8. Qc2 {[%clk 0:02:50]}  Ne4 {[%clk 0:02:43]} 9. Bf4 {[%clk 0:02:29]}  Bxf4 {[%clk 0:02:37]} 10. gxf4 {[%clk 0:02:28]}  f5 {[%clk 0:02:36]} 11. Nbd2 {[%clk 0:02:22]}  Rf6 {[%clk 0:02:30]} 12. Ne5 {[%clk 0:02:03]}  Rh6 {[%clk 0:02:27]} 13. Ndf3 {[%clk 0:01:56]}  Nd7 {[%clk 0:02:21]} 14. e3 {[%clk 0:01:48]}  Ndf6 {[%clk 0:02:18]} 15. Ng5 {[%clk 0:01:25]}  Qe8 {[%clk 0:01:29]} 16. Ngf7 {[%clk 0:01:05]}  Rh4 {[%clk 0:01:14]} 17. f3 {[%clk 0:01:05]}  Nd7 {[%clk 0:00:37]} 18. fxe4 {[%clk 0:00:58]}  Nxe5 {[%clk 0:00:36]} 19. Nxe5 {[%clk 0:00:56]}  dxe4 {[%clk 0:00:36]} 20. Qf2 {[%clk 0:00:54]}  Rh6 {[%clk 0:00:36]} 21. c5 {[%clk 0:00:45]}  Bd7 {[%clk 0:00:32]} 22. Qg3 {[%clk 0:00:31]}  Qe7 {[%clk 0:00:31]} 23. Kf2 {[%clk 0:00:28]}  Be8 {[%clk 0:00:31]} 24. Rg1 {[%clk 0:00:27]}  Rd8 {[%clk 0:00:26]} 25. Bf1 {[%clk 0:00:26]}  Rf6 {[%clk 0:00:25]} 26. Bc4 {[%clk 0:00:25]}  Kh8 {[%clk 0:00:24]} 27. Rg2 {[%clk 0:00:24]}  Bh5 {[%clk 0:00:21]} 28. Rag1 {[%clk 0:00:21]}  Rg8 {[%clk 0:00:21]} 29. Qg5 {[%clk 0:00:20]}  Be8 {[%clk 0:00:18]} 30. h4 {[%clk 0:00:19]}  Qf8 {[%clk 0:00:16]} 31. h5 {[%clk 0:00:18]}  b6 {[%clk 0:00:13]} 32. Ng6+ {[%clk 0:00:15]}  Bxg6 {[%clk 0:00:12]} 33. hxg6 {[%clk 0:00:15]}  h6 {[%clk 0:00:12]} 34. Rh2 {[%clk 0:00:14]}  bxc5 {[%clk 0:00:07]} 35. dxc5 {[%clk 0:00:12]}  a5 {[%clk 0:00:02]} 36. Rh5 {[%clk 0:00:12]} 1-0


[Site "https://www.chess.com"]

[Event "Titled Tuesday Blitz February 28 Late 2023"]
[White "Gubajdullin, Alexei"]
[Black "Ardila, Oscar Humberto"]
[WhiteFideId "4141202"]
[BlackFideId "4404742"]
[WhiteElo "2285"]
[BlackElo "1946"]
[Result "1-0"]
[Round "01"]
[TimeControl "180+2"]
[Date "2023.02.28"]
[WhiteClock "0:00:15"]
[BlackClock "0:00:03"]

1. d4 {[%clk 0:03:00]}  Nf6 {[%clk 0:02:59]} 2. Nf3 {[%clk 0:02:59]}  g6 {[%clk 0:02:59]} 3. Bf4 {[%clk 0:02:59]}  Bg7 {[%clk 0:02:59]} 4. e3 {[%clk 0:03:00]}  O-O {[%clk 0:02:58]} 5. Be2 {[%clk 0:03:00]}  d6 {[%clk 0:02:58]} 6. O-O {[%clk 0:03:01]}  Nbd7 {[%clk 0:02:58]} 7. h3 {[%clk 0:03:00]}  b6 {[%clk 0:02:58]} 8. a4 {[%clk 0:03:00]}  a5 {[%clk 0:02:58]} 9. Nc3 {[%clk 0:02:59]}  Bb7 {[%clk 0:02:58]} 10. Bh2 {[%clk 0:02:59]}  Ne4 {[%clk 0:02:58]} 11. Nxe4 {[%clk 0:02:58]}  Bxe4 {[%clk 0:02:58]} 12. Nd2 {[%clk 0:02:58]}  Bb7 {[%clk 0:02:56]} 13. Bf3 {[%clk 0:02:58]}  Bxf3 {[%clk 0:02:56]} 14. Qxf3 {[%clk 0:02:58]}  Nf6 {[%clk 0:02:56]} 15. Qc6 {[%clk 0:02:57]}  Qd7 {[%clk 0:02:55]} 16. Qxd7 {[%clk 0:02:56]}  Nxd7 {[%clk 0:02:54]} 17. Nc4 {[%clk 0:02:56]}  Rfe8 {[%clk 0:02:48]} 18. Na3 {[%clk 0:02:54]}  c6 {[%clk 0:02:42]} 19. Rfb1 {[%clk 0:02:53]}  e5 {[%clk 0:02:41]} 20. c3 {[%clk 0:02:50]}  d5 {[%clk 0:02:32]} 21. Nc2 {[%clk 0:02:46]}  e4 {[%clk 0:02:19]} 22. b4 {[%clk 0:02:45]}  axb4 {[%clk 0:02:18]} 23. cxb4 {[%clk 0:02:42]}  b5 {[%clk 0:02:10]} 24. a5 {[%clk 0:02:36]}  Ra6 {[%clk 0:02:04]} 25. Ra3 {[%clk 0:02:33]}  Bf8 {[%clk 0:02:03]} 26. Rc3 {[%clk 0:02:31]}  f5 {[%clk 0:01:59]} 27. h4 {[%clk 0:02:15]}  Be7 {[%clk 0:01:57]} 28. Bg3 {[%clk 0:02:14]}  Kf7 {[%clk 0:01:57]} 29. f3 {[%clk 0:02:12]}  exf3 {[%clk 0:01:33]} 30. gxf3 {[%clk 0:02:12]}  Bf6 {[%clk 0:01:31]} 31. Kf2 {[%clk 0:02:07]}  Re6 {[%clk 0:01:30]} 32. Ne1 {[%clk 0:02:06]}  h6 {[%clk 0:01:22]} 33. Nd3 {[%clk 0:02:05]}  g5 {[%clk 0:01:22]} 34. hxg5 {[%clk 0:02:02]}  hxg5 {[%clk 0:01:22]} 35. f4 {[%clk 0:01:53]}  g4 {[%clk 0:01:20]} 36. Rh1 {[%clk 0:01:46]}  Kg6 {[%clk 0:01:18]} 37. Bh4 {[%clk 0:01:44]}  Bg7 {[%clk 0:01:13]} 38. Bg5 {[%clk 0:01:42]}  Re8 {[%clk 0:01:08]} 39. Rhc1 {[%clk 0:01:40]}  Re6 {[%clk 0:01:08]} 40. R1c2 {[%clk 0:01:39]}  Bf8 {[%clk 0:01:06]} 41. Rc1 {[%clk 0:01:33]}  Bg7 {[%clk 0:01:05]} 42. Rh1 {[%clk 0:01:32]}  Re8 {[%clk 0:01:05]} 43. Rcc1 {[%clk 0:01:21]}  Rh8 {[%clk 0:01:01]} 44. Rxh8 {[%clk 0:01:19]}  Bxh8 {[%clk 0:01:01]} 45. Be7 {[%clk 0:01:18]}  Bg7 {[%clk 0:01:00]} 46. Bd6 {[%clk 0:01:17]}  Bf6 {[%clk 0:00:56]} 47. Be5 {[%clk 0:01:16]}  Bh4+ {[%clk 0:00:54]} 48. Ke2 {[%clk 0:01:16]}  Be7 {[%clk 0:00:32]} 49. Rh1 {[%clk 0:01:13]}  Ra8 {[%clk 0:00:31]} 50. Rh8 {[%clk 0:01:06]}  Rxh8 {[%clk 0:00:28]} 51. Bxh8 {[%clk 0:01:05]}  Nb8 {[%clk 0:00:24]} 52. Kf2 {[%clk 0:00:34]}  Na6 {[%clk 0:00:21]} 53. Ne5+ {[%clk 0:00:32]}  Kh7 {[%clk 0:00:20]} 54. Nxc6 {[%clk 0:00:32]}  Bxb4 {[%clk 0:00:17]} 55. Be5 {[%clk 0:00:26]}  Bc3 {[%clk 0:00:17]} 56. Ne7 {[%clk 0:00:22]}  b4 {[%clk 0:00:17]} 57. Nxd5 {[%clk 0:00:22]}  Bd2 {[%clk 0:00:14]} 58. Ke2 {[%clk 0:00:21]}  Bc3 {[%clk 0:00:12]} 59. Bf6 {[%clk 0:00:21]}  Kg6 {[%clk 0:00:11]} 60. Bh4 {[%clk 0:00:20]}  Kf7 {[%clk 0:00:11]} 61. Nxc3 {[%clk 0:00:19]}  bxc3 {[%clk 0:00:11]} 62. Kd3 {[%clk 0:00:20]}  Ke6 {[%clk 0:00:11]} 63. Kxc3 {[%clk 0:00:20]}  Kd5 {[%clk 0:00:12]} 64. Be1 {[%clk 0:00:19]}  Ke4 {[%clk 0:00:11]} 65. Kc4 {[%clk 0:00:19]}  Kxe3 {[%clk 0:00:11]} 66. d5 {[%clk 0:00:19]}  Kxf4 {[%clk 0:00:11]} 67. Bc3 {[%clk 0:00:19]}  g3 {[%clk 0:00:11]} 68. d6 {[%clk 0:00:19]}  Nb8 {[%clk 0:00:09]} 69. a6 {[%clk 0:00:17]}  Nxa6 {[%clk 0:00:03]} 70. d7 {[%clk 0:00:17]}  Kf3 {[%clk 0:00:03]} 71. d8=Q {[%clk 0:00:17]}  f4 {[%clk 0:00:04]} 72. Qd5+ {[%clk 0:00:16]}  Kf2 {[%clk 0:00:03]} 73. Bd4+ {[%clk 0:00:16]}  Kf1 {[%clk 0:00:03]} 74. Qh1+ {[%clk 0:00:15]}  Ke2 {[%clk 0:00:03]} 75. Qg2+ {[%clk 0:00:15]} 1-0


[Site "https://www.chess.com"]

[Event "Titled Tuesday Blitz February 28 Late 2023"]
[White "Fajdetic, Hrvoje"]
[Black "Defend, Balint"]
[WhiteFideId "14501945"]
[BlackFideId "17004853"]
[WhiteElo "2185"]
[BlackElo "2582"]
[Result "1-0"]
[Round "01"]
[TimeControl "180+2"]
[Date "2023.02.28"]
[WhiteClock "0:01:16"]
[BlackClock "0:01:27"]

1. d4 {[%clk 0:02:58]}  Nf6 {[%clk 0:02:59]} 2. Bf4 {[%clk 0:02:57]}  c5 {[%clk 0:02:54]} 3. e3 {[%clk 0:02:54]}  e6 {[%clk 0:02:53]} 4. Nd2 {[%clk 0:02:52]}  b6 {[%clk 0:02:53]} 5. Nc4 {[%clk 0:02:51]}  d5 {[%clk 0:02:48]} 6. Ne5 {[%clk 0:02:51]}  Nbd7 {[%clk 0:02:47]} 7. Nc6 {[%clk 0:02:46]}  Bb7 {[%clk 0:02:42]} 8. Nxd8 {[%clk 0:02:45]}  Rxd8 {[%clk 0:02:43]} 9. Bb5 {[%clk 0:02:44]}  a6 {[%clk 0:02:40]} 10. Bxd7+ {[%clk 0:02:43]}  Rxd7 {[%clk 0:02:35]} 11. Nf3 {[%clk 0:02:43]}  c4 {[%clk 0:02:34]} 12. Ne5 {[%clk 0:02:40]}  Rd8 {[%clk 0:02:34]} 13. Bg5 {[%clk 0:02:38]}  Be7 {[%clk 0:02:31]} 14. O-O {[%clk 0:02:36]}  h6 {[%clk 0:02:30]} 15. Bxf6 {[%clk 0:02:34]}  gxf6 {[%clk 0:02:31]} 16. Nf3 {[%clk 0:02:33]}  h5 {[%clk 0:02:30]} 17. h3 {[%clk 0:02:30]}  Bd6 {[%clk 0:02:30]} 18. c3 {[%clk 0:02:28]}  Ke7 {[%clk 0:02:30]} 19. b3 {[%clk 0:02:27]}  b5 {[%clk 0:02:28]} 20. a4 {[%clk 0:02:26]}  b4 {[%clk 0:02:23]} 21. cxb4 {[%clk 0:02:23]}  c3 {[%clk 0:02:23]} 22. b5 {[%clk 0:02:05]}  a5 {[%clk 0:02:22]} 23. Qc2 {[%clk 0:02:01]}  Bb4 {[%clk 0:02:21]} 24. Ne1 {[%clk 0:02:01]}  f5 {[%clk 0:02:18]} 25. Nd3 {[%clk 0:02:00]}  Rb8 {[%clk 0:02:13]} 26. Nxb4 {[%clk 0:01:59]}  axb4 {[%clk 0:02:14]} 27. a5 {[%clk 0:01:58]}  Bc8 {[%clk 0:02:15]} 28. b6 {[%clk 0:01:57]}  Ba6 {[%clk 0:02:15]} 29. Rfe1 {[%clk 0:01:50]}  Bb5 {[%clk 0:02:15]} 30. f3 {[%clk 0:01:49]}  Ra8 {[%clk 0:02:12]} 31. e4 {[%clk 0:01:48]}  dxe4 {[%clk 0:02:04]} 32. fxe4 {[%clk 0:01:49]}  f4 {[%clk 0:02:04]} 33. d5 {[%clk 0:01:39]}  e5 {[%clk 0:02:03]} 34. Qf2 {[%clk 0:01:38]}  Kd6 {[%clk 0:02:02]} 35. b7 {[%clk 0:01:36]}  Ra6 {[%clk 0:02:00]} 36. Qh4 {[%clk 0:01:25]}  Kd7 {[%clk 0:01:52]} 37. Qg5 {[%clk 0:01:18]}  Rb8 {[%clk 0:01:30]} 38. Qxe5 {[%clk 0:01:17]}  Rxb7 {[%clk 0:01:30]} 39. Qxf4 {[%clk 0:01:17]}  Rg6 {[%clk 0:01:27]} 40. Qxf7+ {[%clk 0:01:16]} 1-0


[Site "https://www.chess.com"]

[Event "Titled Tuesday Blitz February 28 Late 2023"]
[White "Ozates, Tuna"]
[Black "De Souza, Cristiano Gomes"]
[WhiteFideId "6354521"]
[BlackFideId "2151758"]
[WhiteElo "2151"]
[BlackElo "2068"]
[Result "0-1"]
[Round "01"]
[TimeControl "180+2"]
[Date "2023.02.28"]
[WhiteClock "0:01:15"]
[BlackClock "0:01:43"]

1. d4 {[%clk 0:03:00]}  Nf6 {[%clk 0:02:56]} 2. c4 {[%clk 0:02:58]}  g6 {[%clk 0:02:55]} 3. Nc3 {[%clk 0:02:58]}  Bg7 {[%clk 0:02:56]} 4. e4 {[%clk 0:02:57]}  d6 {[%clk 0:02:56]} 5. Be2 {[%clk 0:02:52]}  O-O {[%clk 0:02:57]} 6. g4 {[%clk 0:02:52]}  c5 {[%clk 0:02:53]} 7. d5 {[%clk 0:02:51]}  Na6 {[%clk 0:02:51]} 8. g5 {[%clk 0:02:50]}  Nd7 {[%clk 0:02:50]} 9. h4 {[%clk 0:02:51]}  Nc7 {[%clk 0:02:49]} 10. h5 {[%clk 0:02:51]}  Qe8 {[%clk 0:02:45]} 11. Be3 {[%clk 0:02:47]}  e6 {[%clk 0:02:38]} 12. hxg6 {[%clk 0:02:45]}  fxg6 {[%clk 0:02:34]} 13. Nh3 {[%clk 0:02:45]}  exd5 {[%clk 0:02:32]} 14. cxd5 {[%clk 0:02:44]}  a6 {[%clk 0:02:29]} 15. f4 {[%clk 0:02:33]}  Bxc3+ {[%clk 0:02:24]} 16. bxc3 {[%clk 0:02:34]}  Qxe4 {[%clk 0:02:24]} 17. Kf2 {[%clk 0:02:30]}  Ne5 {[%clk 0:02:19]} 18. c4 {[%clk 0:02:11]}  b5 {[%clk 0:02:15]} 19. Qd2 {[%clk 0:01:52]}  bxc4 {[%clk 0:02:12]} 20. Kg3 {[%clk 0:01:48]}  Nxd5 {[%clk 0:01:59]} 21. fxe5 {[%clk 0:01:23]}  Nxe3 {[%clk 0:01:56]} 22. Nf2 {[%clk 0:01:16]}  Qg2+ {[%clk 0:01:48]} 23. Kh4 {[%clk 0:01:15]}  Nf5# {[%clk 0:01:43]} 0-1


[Site "https://www.chess.com"]

[Event "Titled Tuesday Blitz February 28 Late 2023"]
[White "Huang, Alex"]
[Black "Krallis, Christos"]
[WhiteFideId "4302508"]
[BlackFideId "4298896"]
[WhiteElo "2029"]
[BlackElo "2243"]
[Result "0-1"]
[Round "01"]
[TimeControl "180+2"]
[Date "2023.02.28"]
[WhiteClock "0:00:18"]
[BlackClock "0:00:32"]

1. d4 {[%clk 0:03:00]}  b6 {[%clk 0:02:58]} 2. Nf3 {[%clk 0:02:59]}  Bb7 {[%clk 0:02:58]} 3. Bf4 {[%clk 0:02:59]}  Nf6 {[%clk 0:02:58]} 4. e3 {[%clk 0:03:00]}  c5 {[%clk 0:02:58]} 5. h3 {[%clk 0:02:59]}  g6 {[%clk 0:02:57]} 6. Nbd2 {[%clk 0:03:00]}  Bg7 {[%clk 0:02:58]} 7. c4 {[%clk 0:02:58]}  cxd4 {[%clk 0:02:57]} 8. exd4 {[%clk 0:02:49]}  d5 {[%clk 0:02:56]} 9. Bd3 {[%clk 0:02:38]}  O-O {[%clk 0:02:53]} 10. O-O {[%clk 0:02:36]}  dxc4 {[%clk 0:02:53]} 11. Bxc4 {[%clk 0:02:31]}  Nc6 {[%clk 0:02:52]} 12. Nb3 {[%clk 0:02:22]}  Rc8 {[%clk 0:02:46]} 13. Rc1 {[%clk 0:02:21]}  Nb4 {[%clk 0:02:44]} 14. a3 {[%clk 0:02:08]}  Nbd5 {[%clk 0:02:19]} 15. Be5 {[%clk 0:02:02]}  e6 {[%clk 0:02:13]} 16. Re1 {[%clk 0:02:02]}  Nh5 {[%clk 0:02:04]} 17. Bxg7 {[%clk 0:02:00]}  Kxg7 {[%clk 0:02:01]} 18. Qd2 {[%clk 0:01:50]}  Ndf4 {[%clk 0:01:35]} 19. Re3 {[%clk 0:01:32]}  Qf6 {[%clk 0:01:17]} 20. Qe1 {[%clk 0:01:09]}  Nxh3+ {[%clk 0:01:04]} 21. Kh2 {[%clk 0:01:00]}  Ng5 {[%clk 0:00:52]} 22. Nxg5 {[%clk 0:00:45]}  Qxg5 {[%clk 0:00:52]} 23. Bf1 {[%clk 0:00:36]}  Rxc1 {[%clk 0:00:46]} 24. Nxc1 {[%clk 0:00:29]}  Nf6 {[%clk 0:00:45]} 25. Kg1 {[%clk 0:00:26]}  Qf4 {[%clk 0:00:39]} 26. Ne2 {[%clk 0:00:24]}  Qd6 {[%clk 0:00:38]} 27. Qd2 {[%clk 0:00:21]}  Rd8 {[%clk 0:00:34]} 28. Rh3 {[%clk 0:00:21]}  h5 {[%clk 0:00:33]} 29. Rd3 {[%clk 0:00:20]}  Ba6 {[%clk 0:00:33]} 30. Rf3 {[%clk 0:00:18]}  Bxe2 {[%clk 0:00:32]} 31. Qg5 {[%clk 0:00:18]}  Bxf3 {[%clk 0:00:32]} 0-1


[Site "https://www.chess.com"]